[Event "Early-Titled-Tuesday-Blitz-February-27-2024"]
[Site "Chess.com"]
[Date "2024.02.27"]
[Round "2"]
[White "blitzking1729"]
[Black "RamyresCoelho"]
[Result "1-0"]
[WhiteElo "2683"]
[BlackElo "2273"]
[TimeControl "180+1"]
[EndTime "8:15:31 PST"]
[Termination "blitzking1729 won by resignation"]

1. c4 {[%clk 0:03:00.9]} 1... Nf6 {[%clk 0:02:59.6]} 2. g3 {[%clk 0:02:56.8]}
2... g6 {[%clk 0:02:59.4]} 3. Bg2 {[%clk 0:02:56.3]} 3... Bg7 {[%clk 0:03:00.3]}
4. Nf3 {[%clk 0:02:55.4]} 4... O-O {[%clk 0:03:01.2]} 5. O-O {[%clk 0:02:55.8]}
5... d6 {[%clk 0:03:02.1]} 6. Nc3 {[%clk 0:02:54.4]} 6... c6 {[%clk 0:03:03]} 7.
d4 {[%clk 0:02:53.3]} 7... Nbd7 {[%clk 0:03:02.8]} 8. e4 {[%clk 0:02:51.7]} 8...
e5 {[%clk 0:03:02.1]} 9. h3 {[%clk 0:02:51.8]} 9... exd4 {[%clk 0:03:01.6]} 10.
Nxd4 {[%clk 0:02:52.7]} 10... Ne5 {[%clk 0:02:58.2]} 11. b3 {[%clk 0:02:50]}
11... Re8 {[%clk 0:02:48.8]} 12. Bb2 {[%clk 0:02:47.1]} 12... Qc7 {[%clk
0:02:39.7]} 13. Rc1 {[%clk 0:02:44.2]} 13... Be6 {[%clk 0:02:27.9]} 14. f4
{[%clk 0:02:38.9]} 14... Ned7 {[%clk 0:02:20.5]} 15. f5 {[%clk 0:02:37.5]} 15...
gxf5 {[%clk 0:02:16]} 16. exf5 {[%clk 0:02:38.4]} 16... Bxc4 {[%clk 0:01:40.3]}
17. bxc4 {[%clk 0:02:34.5]} 17... Qb6 {[%clk 0:01:41.2]} 18. Na4 {[%clk
0:02:31.8]} 18... Qa5 {[%clk 0:01:36.8]} 19. Bc3 {[%clk 0:02:28.9]} 19... Qe5
{[%clk 0:01:33.4]} 20. Kh2 {[%clk 0:02:22]} 20... Ne4 {[%clk 0:01:25.6]} 21.
Bxe4 {[%clk 0:02:19.6]} 21... Qxe4 {[%clk 0:01:26.5]} 22. Re1 {[%clk 0:02:04.9]}
22... Qxe1 {[%clk 0:00:44.2]} 23. Bxe1 {[%clk 0:02:03.8]} 23... c5 {[%clk
0:00:38.1]} 24. Nb5 {[%clk 0:01:56.3]} 24... Ne5 {[%clk 0:00:37.3]} 25. Nc7
{[%clk 0:01:55]} 25... Bh6 {[%clk 0:00:30.7]} 26. Rc2 {[%clk 0:01:49.5]} 26...
Nc6 {[%clk 0:00:17]} 27. Nxe8 {[%clk 0:01:48]} 27... Rxe8 {[%clk 0:00:16.6]} 28.
Re2 {[%clk 0:01:48]} 28... Be3 {[%clk 0:00:16.2]} 29. Bf2 {[%clk 0:01:41.3]} 1-0

[Event "Early-Titled-Tuesday-Blitz-February-27-2024"]
[Site "Chess.com"]
[Date "2024.02.27"]
[Round "2"]
[White "kleinebeer98"]
[Black "NMJeevanK"]
[Result "1-0"]
[WhiteElo "2874"]
[BlackElo "2591"]
[TimeControl "180+1"]
[EndTime "8:15:36 PST"]
[Termination "kleinebeer98 won by checkmate"]

1. e4 {[%clk 0:03:00.9]} 1... e5 {[%clk 0:03:00.1]} 2. Nc3 {[%clk 0:03:00]} 2...
Nf6 {[%clk 0:02:54.2]} 3. f4 {[%clk 0:03:00.5]} 3... d6 {[%clk 0:02:52.3]} 4.
fxe5 {[%clk 0:02:59.6]} 4... dxe5 {[%clk 0:02:52.5]} 5. Nf3 {[%clk 0:03:00.5]}
5... Nbd7 {[%clk 0:02:46.9]} 6. d3 {[%clk 0:02:54.3]} 6... Bc5 {[%clk 0:02:46]}
7. Na4 {[%clk 0:02:51.9]} 7... Bd6 {[%clk 0:02:41.5]} 8. Be2 {[%clk 0:02:51.8]}
8... c6 {[%clk 0:02:37.6]} 9. O-O {[%clk 0:02:51.2]} 9... O-O {[%clk 0:02:32.8]}
10. Kh1 {[%clk 0:02:50.7]} 10... h6 {[%clk 0:02:29.4]} 11. Qe1 {[%clk
0:02:45.4]} 11... Nb6 {[%clk 0:02:24.7]} 12. Nc3 {[%clk 0:02:39.1]} 12... Kh8
{[%clk 0:02:16.7]} 13. Nh4 {[%clk 0:02:35.4]} 13... Nh7 {[%clk 0:01:59.1]} 14.
Qg3 {[%clk 0:02:30]} 14... Be7 {[%clk 0:01:55]} 15. Nf5 {[%clk 0:02:29.4]} 15...
Bxf5 {[%clk 0:01:54.8]} 16. Rxf5 {[%clk 0:02:30.3]} 16... f6 {[%clk 0:01:52.1]}
17. Bh5 {[%clk 0:02:27.6]} 17... Ng5 {[%clk 0:01:44.3]} 18. Bg6 {[%clk
0:02:24.8]} 18... Bc5 {[%clk 0:01:30.6]} 19. Qg4 {[%clk 0:02:11.3]} 19... Qd4
{[%clk 0:01:26.5]} 20. Bd2 {[%clk 0:02:08.9]} 20... Rad8 {[%clk 0:00:51]} 21.
Raf1 {[%clk 0:02:08.3]} 21... a5 {[%clk 0:00:49.6]} 22. Qh5 {[%clk 0:02:03]}
22... Kg8 {[%clk 0:00:48.9]} 23. h4 {[%clk 0:01:51.7]} 23... Ne6 {[%clk
0:00:45.8]} 24. Qg4 {[%clk 0:01:43.3]} 24... Kh8 {[%clk 0:00:35.5]} 25. Bxh6
{[%clk 0:01:38.6]} 25... gxh6 {[%clk 0:00:34.4]} 26. Rh5 {[%clk 0:01:39.4]}
26... Ng7 {[%clk 0:00:18.5]} 27. Rxh6+ {[%clk 0:01:39.6]} 27... Kg8 {[%clk
0:00:19.3]} 28. Bh7+ {[%clk 0:01:38]} 28... Kf7 {[%clk 0:00:19.3]} 29. Rhxf6+
{[%clk 0:01:37.9]} 29... Ke8 {[%clk 0:00:15.5]} 30. Qxg7 {[%clk 0:01:25.2]}
30... Rxf6 {[%clk 0:00:13.3]} 31. Bg6+ {[%clk 0:01:26]} 31... Rxg6 {[%clk
0:00:13.1]} 32. Qf7# {[%clk 0:01:26.8]} 1-0

[Event "Early-Titled-Tuesday-Blitz-February-27-2024"]
[Site "Chess.com"]
[Date "2024.02.27"]
[Round "2"]
[White "FLYD"]
[Black "Mikasinski"]
[Result "1-0"]
[WhiteElo "1840"]
[BlackElo "2648"]
[TimeControl "180+1"]
[EndTime "8:15:38 PST"]
[Termination "FLYD won by checkmate"]

1. e4 {[%clk 0:03:00.9]} 1... c5 {[%clk 0:02:58]} 2. Nf3 {[%clk 0:02:59.2]} 2...
d6 {[%clk 0:02:57.8]} 3. d4 {[%clk 0:02:58.5]} 3... cxd4 {[%clk 0:02:57.1]} 4.
Nxd4 {[%clk 0:02:59.4]} 4... Nf6 {[%clk 0:02:56.8]} 5. Nc3 {[%clk 0:03:00.1]}
5... g6 {[%clk 0:02:56.4]} 6. Be3 {[%clk 0:02:59.9]} 6... Bg7 {[%clk 0:02:56.1]}
7. f3 {[%clk 0:02:58.9]} 7... O-O {[%clk 0:02:56.8]} 8. Qd2 {[%clk 0:02:59.3]}
8... Nc6 {[%clk 0:02:53.4]} 9. O-O-O {[%clk 0:02:59.8]} 9... Bd7 {[%clk
0:02:53.5]} 10. h4 {[%clk 0:02:59.4]} 10... Rc8 {[%clk 0:02:53.9]} 11. h5 {[%clk
0:02:48.5]} 11... Nxh5 {[%clk 0:02:51.9]} 12. Nxc6 {[%clk 0:02:32.6]} 12... Rxc6
{[%clk 0:02:50.9]} 13. Bh6 {[%clk 0:02:24.7]} 13... Bxh6 {[%clk 0:02:49.7]} 14.
Qxh6 {[%clk 0:02:24.4]} 14... Rxc3 {[%clk 0:02:50.6]} 15. bxc3 {[%clk
0:02:14.6]} 15... Qa5 {[%clk 0:02:50.4]} 16. g4 {[%clk 0:02:02.5]} 16... Nf6
{[%clk 0:02:49.1]} 17. Bd3 {[%clk 0:01:56.1]} 17... e5 {[%clk 0:01:22.9]} 18. g5
{[%clk 0:01:40.7]} 18... Nh5 {[%clk 0:01:19.8]} 19. f4 {[%clk 0:01:39.2]} 19...
exf4 {[%clk 0:00:54.3]} 20. Rxh5 {[%clk 0:01:27.5]} 20... gxh5 {[%clk
0:00:46.3]} 21. e5 {[%clk 0:01:27.4]} 21... f5 {[%clk 0:00:29.2]} 22. Bc4+
{[%clk 0:01:12.4]} 22... Rf7 {[%clk 0:00:21.4]} 23. Bxf7+ {[%clk 0:01:11.2]}
23... Kxf7 {[%clk 0:00:21.3]} 24. Qxh7+ {[%clk 0:01:10.1]} 24... Ke8 {[%clk
0:00:20.4]} 25. Qg8+ {[%clk 0:01:09.2]} 25... Ke7 {[%clk 0:00:18.7]} 26. exd6#
{[%clk 0:01:09.5]} 1-0

[Event "Early-Titled-Tuesday-Blitz-February-27-2024"]
[Site "Chess.com"]
[Date "2024.02.27"]
[Round "2"]
[White "chessamical"]
[Black "Iskusnyh"]
[Result "0-1"]
[WhiteElo "2169"]
[BlackElo "2668"]
[TimeControl "180+1"]
[EndTime "8:15:40 PST"]
[Termination "Iskusnyh won on time"]

1. Nf3 {[%clk 0:03:00.9]} 1... d5 {[%clk 0:02:57.9]} 2. d4 {[%clk 0:03:00.5]}
2... Nf6 {[%clk 0:02:57.4]} 3. Bf4 {[%clk 0:02:58.5]} 3... c5 {[%clk 0:02:56.3]}
4. e3 {[%clk 0:02:58.7]} 4... Nc6 {[%clk 0:02:53.6]} 5. Nbd2 {[%clk 0:02:58.5]}
5... cxd4 {[%clk 0:02:52.4]} 6. exd4 {[%clk 0:02:58.2]} 6... Bg4 {[%clk
0:02:52.2]} 7. c3 {[%clk 0:02:56.9]} 7... e6 {[%clk 0:02:52.2]} 8. Qb3 {[%clk
0:02:56.4]} 8... Bd6 {[%clk 0:02:52]} 9. Ne5 {[%clk 0:02:12.8]} 9... Bxe5 {[%clk
0:02:20]} 10. dxe5 {[%clk 0:02:06.7]} 10... Nd7 {[%clk 0:02:18.9]} 11. h3 {[%clk
0:00:31.5]} 11... Bh5 {[%clk 0:02:17.2]} 12. Bb5 {[%clk 0:00:11.3]} 12... O-O
{[%clk 0:02:14.2]} 13. Bxc6 {[%clk 0:00:11.8]} 13... bxc6 {[%clk 0:02:15]} 14.
O-O {[%clk 0:00:11.4]} 14... Nc5 {[%clk 0:01:53.8]} 15. Qa3 {[%clk 0:00:10]}
15... Nd3 {[%clk 0:01:53]} 16. Bh2 {[%clk 0:00:07.3]} 16... Be2 {[%clk
0:01:37.9]} 17. Rfb1 {[%clk 0:00:02.5]} 17... Qg5 {[%clk 0:01:37]} 18. Nf1
{[%clk 0:00:01.7]} 18... Qf5 {[%clk 0:01:14.5]} 0-1

[Event "Early-Titled-Tuesday-Blitz-February-27-2024"]
[Site "Chess.com"]
[Date "2024.02.27"]
[Round "2"]
[White "DmitryMaximov"]
[Black "MaxLeto"]
[Result "1-0"]
[WhiteElo "2785"]
[BlackElo "2548"]
[TimeControl "180+1"]
[EndTime "8:15:44 PST"]
[Termination "DmitryMaximov won on time"]

1. e4 {[%clk 0:03:00.9]} 1... c5 {[%clk 0:02:58.1]} 2. Nf3 {[%clk 0:03:01.3]}
2... d6 {[%clk 0:02:58.5]} 3. c3 {[%clk 0:03:01.1]} 3... Nf6 {[%clk 0:02:58.6]}
4. Bc4 {[%clk 0:03:01.4]} 4... Nxe4 {[%clk 0:02:43.8]} 5. Qa4+ {[%clk 0:03:01]}
5... Nd7 {[%clk 0:02:16.3]} 6. Bxf7+ {[%clk 0:03:00.9]} 6... Kxf7 {[%clk
0:02:17.2]} 7. Qxe4 {[%clk 0:03:01]} 7... Nf6 {[%clk 0:02:18.1]} 8. Qe2 {[%clk
0:03:00.2]} 8... h6 {[%clk 0:01:34.8]} 9. O-O {[%clk 0:02:59.9]} 9... g6 {[%clk
0:01:28.3]} 10. d4 {[%clk 0:02:58.4]} 10... cxd4 {[%clk 0:01:28.6]} 11. Nxd4
{[%clk 0:02:53.1]} 11... Bg7 {[%clk 0:01:27.7]} 12. Na3 {[%clk 0:02:48.5]} 12...
Rf8 {[%clk 0:01:22.9]} 13. Be3 {[%clk 0:02:42.8]} 13... Kg8 {[%clk 0:01:03]} 14.
Rad1 {[%clk 0:02:41.8]} 14... Kh7 {[%clk 0:00:56.5]} 15. Rfe1 {[%clk 0:02:40.6]}
15... a6 {[%clk 0:00:49.9]} 16. h3 {[%clk 0:02:35.9]} 16... Bd7 {[%clk
0:00:46.6]} 17. Bc1 {[%clk 0:02:31.1]} 17... Ng8 {[%clk 0:00:14.2]} 18. h4
{[%clk 0:02:20.9]} 18... Qa5 {[%clk 0:00:13.5]} 19. Nc4 {[%clk 0:02:17.7]} 19...
Qxa2 {[%clk 0:00:11.7]} 20. Nb6 {[%clk 0:02:17]} 20... Rad8 {[%clk 0:00:09.4]}
21. Nxd7 {[%clk 0:02:17.1]} 21... Rxd7 {[%clk 0:00:10.3]} 22. Ne6 {[%clk
0:02:17.2]} 22... Rf5 {[%clk 0:00:07.4]} 23. Nxg7 {[%clk 0:01:56.9]} 23... Kxg7
{[%clk 0:00:08.3]} 24. g4 {[%clk 0:01:56.8]} 24... Re5 {[%clk 0:00:08.1]} 25.
Qxe5+ {[%clk 0:01:56.6]} 25... dxe5 {[%clk 0:00:09]} 26. Rxd7 {[%clk 0:01:56.9]}
26... Qa4 {[%clk 0:00:08]} 27. Rd3 {[%clk 0:01:52.5]} 27... Qxg4+ {[%clk
0:00:08.1]} 28. Rg3 {[%clk 0:01:53.2]} 28... Qxh4 {[%clk 0:00:08.6]} 29. Rxe5
{[%clk 0:01:53]} 29... Nf6 {[%clk 0:00:08.6]} 30. Rxe7+ {[%clk 0:01:52.8]} 30...
Kf8 {[%clk 0:00:09.2]} 31. Rxb7 {[%clk 0:01:43.7]} 31... Ne4 {[%clk 0:00:09.5]}
32. Rf3+ {[%clk 0:01:43.6]} 32... Ke8 {[%clk 0:00:09.1]} 33. Rf4 {[%clk
0:01:37.4]} 1-0

[Event "Early-Titled-Tuesday-Blitz-February-27-2024"]
[Site "Chess.com"]
[Date "2024.02.27"]
[Round "2"]
[White "HATilay"]
[Black "Msb2"]
[Result "0-1"]
[WhiteElo "2635"]
[BlackElo "3025"]
[TimeControl "180+1"]
[EndTime "8:15:50 PST"]
[Termination "Msb2 won by resignation"]

1. e4 {[%clk 0:03:00.9]} 1... e6 {[%clk 0:03:00.2]} 2. d4 {[%clk 0:03:00.8]}
2... d5 {[%clk 0:03:00.9]} 3. e5 {[%clk 0:03:01.4]} 3... c5 {[%clk 0:03:01.3]}
4. c3 {[%clk 0:03:02]} 4... Nc6 {[%clk 0:03:02.2]} 5. Nf3 {[%clk 0:03:02.4]}
5... Nge7 {[%clk 0:03:02.9]} 6. Bd3 {[%clk 0:02:54.4]} 6... cxd4 {[%clk
0:03:01.5]} 7. cxd4 {[%clk 0:02:54.3]} 7... Nf5 {[%clk 0:03:02.2]} 8. Bc2 {[%clk
0:02:50.4]} 8... Qb6 {[%clk 0:03:01.8]} 9. Bxf5 {[%clk 0:02:46.7]} 9... exf5
{[%clk 0:03:02.7]} 10. Nc3 {[%clk 0:02:46]} 10... Be6 {[%clk 0:03:03.3]} 11. O-O
{[%clk 0:02:46.3]} 11... Be7 {[%clk 0:03:03.6]} 12. Na4 {[%clk 0:02:25.8]} 12...
Qd8 {[%clk 0:03:01.2]} 13. a3 {[%clk 0:02:04.6]} 13... b6 {[%clk 0:02:58.5]} 14.
Bd2 {[%clk 0:01:56.4]} 14... Rc8 {[%clk 0:02:58.6]} 15. Rc1 {[%clk 0:01:56.8]}
15... O-O {[%clk 0:02:58.1]} 16. b4 {[%clk 0:01:49.9]} 16... Qd7 {[%clk
0:02:54.5]} 17. Nb2 {[%clk 0:01:50.1]} 17... f4 {[%clk 0:02:45.4]} 18. Bxf4
{[%clk 0:01:47.2]} 18... Bg4 {[%clk 0:02:46.1]} 19. h3 {[%clk 0:01:25.1]} 19...
Bxf3 {[%clk 0:02:42.6]} 20. Qxf3 {[%clk 0:01:25.8]} 20... Nxd4 {[%clk
0:02:42.9]} 21. Qd3 {[%clk 0:01:26.5]} 21... Ne6 {[%clk 0:02:40.3]} 22. Bd2
{[%clk 0:01:23.5]} 22... h6 {[%clk 0:02:39.1]} 23. f4 {[%clk 0:01:20.3]} 23...
Rxc1 {[%clk 0:02:34]} 24. Bxc1 {[%clk 0:01:17.9]} 24... f5 {[%clk 0:02:34.6]}
25. Rd1 {[%clk 0:01:12.2]} 25... d4 {[%clk 0:02:33.3]} 26. Nc4 {[%clk
0:01:11.3]} 26... Qd5 {[%clk 0:02:28]} 27. Ne3 {[%clk 0:00:49.7]} 27... Qe4
{[%clk 0:02:26.8]} 28. Qb3 {[%clk 0:00:49.9]} 28... dxe3 {[%clk 0:02:19.4]} 29.
Qxe6+ {[%clk 0:00:48.6]} 29... Rf7 {[%clk 0:02:20.1]} 30. Re1 {[%clk 0:00:40.7]}
30... e2 {[%clk 0:02:12.4]} 31. Qa2 {[%clk 0:00:35.1]} 31... Qd4+ {[%clk
0:02:06.4]} 32. Kh1 {[%clk 0:00:30.3]} 32... Bh4 {[%clk 0:02:05.7]} 33. Rxe2
{[%clk 0:00:12.4]} 33... Qd1+ {[%clk 0:02:05.6]} 34. Kh2 {[%clk 0:00:12.6]}
34... Qxc1 {[%clk 0:02:06.3]} 35. g3 {[%clk 0:00:10.7]} 35... Bd8 {[%clk
0:01:59]} 36. Rc2 {[%clk 0:00:10.1]} 36... Qd1 {[%clk 0:01:56.3]} 37. Rc8 {[%clk
0:00:10.2]} 37... Kf8 {[%clk 0:01:50]} 38. Qe6 {[%clk 0:00:09.1]} 38... Qd2+
{[%clk 0:01:47.9]} 39. Kh1 {[%clk 0:00:09.2]} 39... Qd7 {[%clk 0:01:47.7]} 40.
Qc4 {[%clk 0:00:07.1]} 40... Qd1+ {[%clk 0:01:47.9]} 41. Kh2 {[%clk 0:00:07.2]}
41... Rd7 {[%clk 0:01:48.7]} 0-1

[Event "Early-Titled-Tuesday-Blitz-February-27-2024"]
[Site "Chess.com"]
[Date "2024.02.27"]
[Round "2"]
[White "m_ezat"]
[Black "LionKing2367890"]
[Result "1-0"]
[WhiteElo "2513"]
[BlackElo "2242"]
[TimeControl "180+1"]
[EndTime "8:15:52 PST"]
[Termination "m_ezat won by resignation"]

1. d4 {[%clk 0:02:20.7]} 1... Nf6 {[%clk 0:02:33.3]} 2. c4 {[%clk 0:02:15.6]}
2... e6 {[%clk 0:02:32.5]} 3. Nc3 {[%clk 0:01:54.8]} 3... Bb4 {[%clk 0:02:30.1]}
4. Qc2 {[%clk 0:01:46.5]} 4... d5 {[%clk 0:02:27]} 5. a3 {[%clk 0:01:42.8]} 5...
Bxc3+ {[%clk 0:02:24.9]} 6. Qxc3 {[%clk 0:01:43.7]} 6... dxc4 {[%clk 0:02:22.1]}
7. Qxc4 {[%clk 0:01:44.1]} 7... O-O {[%clk 0:02:20]} 8. Bg5 {[%clk 0:01:42.8]}
8... b6 {[%clk 0:02:14.6]} 9. Nf3 {[%clk 0:01:42.6]} 9... Ba6 {[%clk 0:02:12.3]}
10. Qc2 {[%clk 0:01:43]} 10... Nbd7 {[%clk 0:02:11.2]} 11. e4 {[%clk 0:01:41.9]}
11... Bxf1 {[%clk 0:02:09.6]} 12. Rxf1 {[%clk 0:01:42.5]} 12... h6 {[%clk
0:02:07.1]} 13. Bh4 {[%clk 0:01:42]} 13... Qc8 {[%clk 0:01:59]} 14. O-O-O {[%clk
0:01:39.8]} 14... c5 {[%clk 0:01:58.2]} 15. d5 {[%clk 0:01:39.9]} 15... exd5
{[%clk 0:01:56.4]} 16. e5 {[%clk 0:01:39.8]} 16... Nh7 {[%clk 0:01:37.9]} 17.
Rxd5 {[%clk 0:01:38.2]} 17... Qc6 {[%clk 0:01:37]} 18. Rfd1 {[%clk 0:01:30.5]}
18... Nb8 {[%clk 0:01:34.8]} 19. Rd6 {[%clk 0:01:28]} 19... Qb5 {[%clk
0:01:32.1]} 20. Qe4 {[%clk 0:01:19.1]} 20... Na6 {[%clk 0:01:30.9]} 21. Rd7
{[%clk 0:01:10]} 21... c4 {[%clk 0:01:20.8]} 22. Rxf7 {[%clk 0:00:42.5]} 22...
Nc5 {[%clk 0:01:10]} 23. Rxf8+ {[%clk 0:00:36.4]} 23... Rxf8 {[%clk 0:01:10.9]}
24. Qd5+ {[%clk 0:00:28.8]} 24... Kh8 {[%clk 0:01:10.8]} 25. Be7 {[%clk
0:00:20.6]} 25... Nd3+ {[%clk 0:01:02.1]} 26. Rxd3 {[%clk 0:00:19.9]} 1-0

[Event "Early-Titled-Tuesday-Blitz-February-27-2024"]
[Site "Chess.com"]
[Date "2024.02.27"]
[Round "2"]
[White "Rud_Makarian"]
[Black "SirStrateg"]
[Result "1-0"]
[WhiteElo "3111"]
[BlackElo "2660"]
[TimeControl "180+1"]
[EndTime "8:15:53 PST"]
[Termination "Rud_Makarian won by resignation"]

1. d4 {[%clk 0:03:00.9]} 1... d6 {[%clk 0:02:58.6]} 2. Nf3 {[%clk 0:03:00.7]}
2... Bg4 {[%clk 0:02:58.4]} 3. c4 {[%clk 0:03:00.4]} 3... c6 {[%clk 0:02:58.1]}
4. Nc3 {[%clk 0:03:00.6]} 4... Nd7 {[%clk 0:02:53.1]} 5. g3 {[%clk 0:03:00.7]}
5... Bxf3 {[%clk 0:02:49.8]} 6. exf3 {[%clk 0:03:01.6]} 6... e5 {[%clk
0:02:50.5]} 7. Bg2 {[%clk 0:02:59.5]} 7... exd4 {[%clk 0:02:48.3]} 8. Qxd4
{[%clk 0:03:00.4]} 8... Ngf6 {[%clk 0:02:45.5]} 9. O-O {[%clk 0:03:00]} 9... Be7
{[%clk 0:02:45.9]} 10. b3 {[%clk 0:02:59.4]} 10... O-O {[%clk 0:02:45.8]} 11.
Bb2 {[%clk 0:03:00]} 11... Qb6 {[%clk 0:02:37.3]} 12. Qd2 {[%clk 0:02:57.4]}
12... Nc5 {[%clk 0:02:31.7]} 13. Rfe1 {[%clk 0:02:57.4]} 13... Rfe8 {[%clk
0:02:31.3]} 14. f4 {[%clk 0:02:54.4]} 14... Bf8 {[%clk 0:02:28.1]} 15. Bf3
{[%clk 0:02:52.8]} 15... a5 {[%clk 0:02:26.6]} 16. Ba3 {[%clk 0:02:29.4]} 16...
Rxe1+ {[%clk 0:02:16.5]} 17. Rxe1 {[%clk 0:02:28.3]} 17... Re8 {[%clk
0:02:16.4]} 18. Rxe8 {[%clk 0:02:24.1]} 18... Nxe8 {[%clk 0:02:15.9]} 19. Kg2
{[%clk 0:02:20.9]} 19... Nf6 {[%clk 0:02:13.5]} 20. h4 {[%clk 0:02:19.2]} 20...
h5 {[%clk 0:01:39.9]} 21. Qe2 {[%clk 0:02:14.2]} 21... a4 {[%clk 0:01:30.4]} 22.
b4 {[%clk 0:02:07.7]} 22... Ne6 {[%clk 0:01:30.6]} 23. Qd1 {[%clk 0:01:58.1]}
23... d5 {[%clk 0:01:17.8]} 24. cxd5 {[%clk 0:01:34.7]} 24... cxd5 {[%clk
0:01:18.1]} 25. Nxd5 {[%clk 0:01:32]} 25... Nxd5 {[%clk 0:01:17.1]} 26. Qxd5
{[%clk 0:01:10.3]} 26... Bxb4 {[%clk 0:01:13.2]} 27. Bxb4 {[%clk 0:00:55.2]}
27... Qxb4 {[%clk 0:01:13.2]} 28. f5 {[%clk 0:00:55.4]} 28... Nd4 {[%clk
0:01:00.1]} 29. Bxh5 {[%clk 0:00:53.3]} 29... Nxf5 {[%clk 0:00:37]} 30. Qxf7+
{[%clk 0:00:50.9]} 1-0

[Event "Early-Titled-Tuesday-Blitz-February-27-2024"]
[Site "Chess.com"]
[Date "2024.02.27"]
[Round "2"]
[White "toninhojit"]
[Black "ChessArchitect64"]
[Result "1-0"]
[WhiteElo "2484"]
[BlackElo "2159"]
[TimeControl "180+1"]
[EndTime "8:15:54 PST"]
[Termination "toninhojit won by resignation"]

1. d4 {[%clk 0:03:00.9]} 1... Nf6 {[%clk 0:02:58.9]} 2. c4 {[%clk 0:03:00.9]}
2... c5 {[%clk 0:02:57.5]} 3. e3 {[%clk 0:03:00.2]} 3... e6 {[%clk 0:02:54]} 4.
Nf3 {[%clk 0:02:59.2]} 4... cxd4 {[%clk 0:02:53.3]} 5. exd4 {[%clk 0:02:58.5]}
5... d5 {[%clk 0:02:53.5]} 6. c5 {[%clk 0:02:56.7]} 6... Nc6 {[%clk 0:02:50.9]}
7. Bd3 {[%clk 0:02:54.7]} 7... Be7 {[%clk 0:02:46.5]} 8. O-O {[%clk 0:02:54.9]}
8... O-O {[%clk 0:02:44.3]} 9. h3 {[%clk 0:02:53.6]} 9... Re8 {[%clk 0:02:32.6]}
10. Bf4 {[%clk 0:02:53.1]} 10... Ne4 {[%clk 0:02:25.9]} 11. Nc3 {[%clk
0:02:53.4]} 11... f5 {[%clk 0:02:18]} 12. Ne5 {[%clk 0:02:53.3]} 12... Nxe5
{[%clk 0:02:17]} 13. Bxe5 {[%clk 0:02:53.1]} 13... Bf6 {[%clk 0:02:17.5]} 14.
Bxf6 {[%clk 0:02:27.2]} 14... Qxf6 {[%clk 0:02:18.4]} 15. Bxe4 {[%clk
0:02:24.9]} 15... fxe4 {[%clk 0:02:17.5]} 16. f3 {[%clk 0:02:25.5]} 16... exf3
{[%clk 0:02:10.2]} 17. Rxf3 {[%clk 0:02:26.4]} 17... Qe7 {[%clk 0:02:10]} 18.
Qd2 {[%clk 0:02:23.3]} 18... Bd7 {[%clk 0:02:09.8]} 19. Re1 {[%clk 0:02:23]}
19... Qd8 {[%clk 0:02:05.8]} 20. Re5 {[%clk 0:02:17.2]} 20... b6 {[%clk
0:02:05.4]} 21. b4 {[%clk 0:02:13.2]} 21... a5 {[%clk 0:02:04.5]} 22. b5 {[%clk
0:02:08.7]} 22... bxc5 {[%clk 0:01:58.3]} 23. dxc5 {[%clk 0:02:09.6]} 23... Qc7
{[%clk 0:01:58.5]} 24. Qd4 {[%clk 0:02:04.5]} 24... Rad8 {[%clk 0:01:52.1]} 25.
c6 {[%clk 0:02:03.7]} 25... Bc8 {[%clk 0:01:52.5]} 26. a4 {[%clk 0:01:59.9]}
26... Rf8 {[%clk 0:01:50.7]} 27. Rg3 {[%clk 0:01:41.6]} 27... Rf5 {[%clk
0:01:30.5]} 28. Rxf5 {[%clk 0:01:25.8]} 28... Qxg3 {[%clk 0:01:27.7]} 29. Rf3
{[%clk 0:01:26.3]} 29... Qc7 {[%clk 0:01:25.3]} 30. Qc5 {[%clk 0:01:21]} 30...
Bb7 {[%clk 0:01:06.5]} 31. Qa7 {[%clk 0:01:09.5]} 31... Rb8 {[%clk 0:00:58.4]}
32. cxb7 {[%clk 0:01:08.4]} 32... Rxb7 {[%clk 0:00:54.5]} 33. Qd4 {[%clk
0:01:08.3]} 33... Qc8 {[%clk 0:00:52.9]} 34. Nxd5 {[%clk 0:01:01.3]} 34... exd5
{[%clk 0:00:50.9]} 35. Qxd5+ {[%clk 0:01:02.2]} 35... Kh8 {[%clk 0:00:51.2]} 36.
Qxb7 {[%clk 0:01:00.5]} 36... Qc1+ {[%clk 0:00:48]} 37. Rf1 {[%clk 0:00:58.1]}
37... Qc5+ {[%clk 0:00:47.2]} 38. Kh1 {[%clk 0:00:58.6]} 38... h5 {[%clk
0:00:46.2]} 1-0